bitfinex/quotes_ETHUSD_20220112
["timestamp","ask_amount","ask_price","bid_price","bid_amount"]
[1642012291460,0.00170527,3386.5,3386.2,1.36367362]
[1642012291658,0.00113685,3386.4,3386.3,0.1181]
[1642012291866,0.00113685,3386.4,3386.3,0.85619]
[1642012292063,0.00113685,3386.4,3386.3,1.15619]
[1642012292662,0.00113685,3386.4,3386.3,2.39990963]
[1642012293464,3.00113685,3386.4,3386.3,2.39990963]
[1642012293662,3.00113685,3386.4,3386.3,1.15619]
[1642012296009,2.3691,3387.3,3386.4,7.2133]
[1642012296213,2.3691,3387.3,3386.9,0.4133]
[1642012296214,2.27392197,3387.3,3386.9,0.4133]
[1642012296406,2.27392197,3387.3,3387.0,0.5312]
[1642012296608,2.27392197,3387.3,3387.1,0.4133]
[1642012297006,2.27392197,3387.3,3387.2,0.4133]
[1642012297206,2.27392197,3387.3,3387.2,1.66347603]
[1642012297411,0.00511581,3387.3,3387.2,1.66347603]
[1642012297812,0.00511581,3387.3,3387.2,1.54557603]
[1642012298013,0.00511581,3387.3,3387.2,2.54557603]
[1642012298211,0.00511581,3387.3,3387.2,1.54557603]
[1642012298411,0.00511581,3387.3,3387.2,2.54557603]
[1642012298611,0.00511581,3387.3,3387.2,0.4133]
[1642012298866,4.80511581,3387.3,3387.2,0.4133]
[1642012299559,0.00511581,3387.3,3387.2,0.4133]
[1642012300662,2.85511581,3387.3,3387.2,0.4133]
[1642012301661,6.80511581,3387.3,3387.2,0.4133]
[1642012301863,9.88120837,3387.3,3387.2,0.4133]
[1642012302365,17.3,3387.2,3386.4,0.1]
[1642012302613,0.01200001,3386.7,3386.4,0.1]
[1642012303013,5.10370889,3387.1,3386.4,0.1]
[1642012303014,0.00113685,3386.6,3386.4,0.1]
[1642012303510,0.00341054,3387.0,3386.4,0.1]
[1642012303709,0.00341054,3387.0,3386.7,0.73797]
[1642012303913,0.00284212,3386.9,3386.8,0.1]
[1642012304316,2.50284212,3386.9,3386.8,0.1]
[1642012305218,0.00284212,3386.9,3386.8,0.1]
[1642012305416,0.00284212,3386.9,3386.8,0.5181]
[1642012305619,0.00284212,3386.9,3386.8,3.85406775]
[1642012306016,0.00284212,3386.9,3386.8,4.85406775]
[1642012307262,0.00284212,3386.9,3386.8,6.32486099]
[1642012307563,0.00284212,3386.9,3386.8,6.28889324]
[1642012307959,0.00284212,3386.9,3386.8,6.32055335]
[1642012308364,3.0,3387.3,3386.8,6.32055335]
[1642012308365,3.0,3387.3,3386.8,5.23386335]
[1642012308564,3.0,3387.3,3387.2,1.38768586]
[1642012308764,3.0,3387.3,3387.2,2.86330586]
[1642012308961,3.0,3387.3,3387.2,3.16330586]
[1642012309164,3.0,3387.3,3387.2,4.16330586]
[1642012311010,3.0,3387.3,3387.2,4.28120586]
[1642012311707,1.77226071,3388.4,3387.4,0.1]
[1642012311708,0.26885082,3388.4,3387.4,0.1]
[1642012311907,2.66100989,3388.5,3388.0,0.1]
[1642012312111,0.00682108,3388.1,3388.0,0.1]
[1642012312507,0.00682108,3388.1,3388.0,4.45]
[1642012312706,0.00682108,3388.1,3388.0,6.99464688]
[1642012312906,0.00682108,3388.1,3388.0,7.99464688]
[1642012313509,0.00682108,3388.1,3388.0,3.64464688]
[1642012313710,0.00682108,3388.1,3388.0,4.38224688]
[1642012314160,2.53695838,3388.1,3388.0,4.38224688]
[1642012314359,0.25,3388.1,3388.0,4.28224688]
[1642012314557,0.25,3388.1,3388.0,2.96440244]
[1642012314758,0.25,3388.1,3388.0,1.7376]
[1642012315160,0.25,3388.1,3388.0,0.7376]
[1642012320209,0.25,3388.1,3388.0,2.0376]
[1642012320509,0.25,3388.1,3388.0,1.0376]
[1642012320710,0.25,3388.1,3388.0,2.0376]
[1642012320910,0.25,3388.1,3388.0,2.1555]
[1642012321958,0.25,3388.1,3388.0,2.0376]
[1642012322360,0.25,3388.1,3388.0,2.06832098]
[1642012322760,0.25,3388.1,3388.0,2.0376]
[1642012324866,0.25,3388.1,3388.0,2.07417179]
[1642012325319,0.25,3388.1,3388.0,2.07286677]
[1642012325520,0.73759,3388.9,3388.0,2.07286677]
[1642012325720,0.73759,3388.9,3388.4,1.1801271]
[1642012325920,0.00397896,3388.8,3388.4,1.1801271]
[1642012326123,0.00397896,3388.8,3388.4,1.3]
[1642012326323,0.00341054,3388.7,3388.4,1.3]
[1642012326526,0.00341054,3388.7,3388.3,1.77516]
[1642012326724,3.69561305,3388.9,3388.3,1.77516]
[1642012326725,0.00284212,3388.6,3388.3,1.77516]
[1642012326925,0.00284212,3388.6,3388.3,1.47516]
[1642012327124,0.00227369,3388.5,3388.3,1.77516]
[1642012329049,0.00170527,3388.4,3388.3,2.77516]
[1642012330049,0.00170527,3388.4,3388.3,2.81392534]
[1642012330645,0.00170527,3388.4,3388.3,2.77516]
[1642012334595,0.00170527,3388.4,3388.3,4.24828564]
[1642012334796,1.50340989,3388.7,3388.4,3.6]
[1642012334997,2.53019092,3388.6,3388.5,0.1179]
[1642012335197,2.53132777,3388.6,3388.5,1.1179]
[1642012335394,2.53132777,3388.6,3388.5,1.1511493]
[1642012335795,2.53132777,3388.6,3388.5,1.15750347]
[1642012336196,0.00113685,3388.6,3388.5,1.15750347]
[1642012336642,0.00113685,3388.6,3388.5,0.1179]
[1642012336849,0.00113685,3388.6,3388.5,1.88549421]
[1642012337250,0.00113685,3388.6,3388.5,2.18549421]
[1642012337449,2.53019092,3389.0,3388.7,0.4424566]
[1642012337649,2.53019092,3389.0,3388.8,0.1179]
[1642012337850,0.00170527,3388.9,3388.8,0.1179]
[1642012338654,2.53189619,3388.9,3388.8,0.85533]
[1642012339054,2.53189619,3388.9,3388.8,1.85533]
[1642012339661,0.00170527,3388.9,3388.8,1.85533]
[1642012340302,2.40170527,3388.9,3388.8,1.85533]
[1642012341302,2.53189619,3388.9,3388.8,1.85533]
[1642012342503,0.00170527,3388.9,3388.8,1.73743]
[1642012343306,2.53189619,3388.9,3388.8,1.73743]
[1642012343971,2.53189619,3388.9,3388.8,0.73743]
[1642012344173,2.53189619,3388.9,3388.8,1.73743]
[1642012345171,12.38189696,3388.9,3388.8,0.73743]
[1642012345377,12.79979696,3388.9,3387.9,2.21275]
[1642012345573,0.73773,3388.7,3387.4,2.95005]
[1642012345771,3.92861491,3388.6,3388.0,0.00341054]
[1642012345974,0.4179,3388.6,3388.0,0.00341054]
[1642012346172,20.73600518,3388.5,3388.0,0.00341054]
[1642012346373,0.73785,3388.3,3388.0,0.00341054]
[1642012346574,0.73783,3388.0,3387.6,0.00568424]
[1642012346774,0.73783,3388.0,3387.8,0.73783]
[1642012346977,2.88935682,3387.9,3387.8,0.73783]
[1642012347173,0.73783,3388.0,3387.9,0.00397897]
[1642012347373,0.73783,3388.0,3387.8,0.74237739]
[1642012347604,0.73783,3388.0,3387.9,0.00397897]
[1642012348205,6.66802092,3388.0,3387.9,0.00397897]
[1642012348603,9.5506575,3388.0,3387.9,0.00397897]
[1642012350215,11.05925153,3388.0,3387.9,0.00397897]
[1642012350411,8.27661495,3388.0,3387.9,0.00397897]
[1642012351209,6.76802092,3388.0,3387.9,0.00397897]
[1642012353043,9.61802092,3388.0,3387.9,0.00397897]
[1642012353247,12.69588852,3388.0,3387.9,0.00397897]
[1642012353847,0.73786,3387.9,3387.6,1.03788]
[1642012354047,3.06631733,3387.8,3387.7,0.00511581]
[1642012355295,7.10875318,3387.8,3387.7,0.00511581]
[1642012356297,4.04243585,3387.8,3387.7,0.00511581]
[1642012356797,4.34243585,3387.8,3387.7,0.00511581]
[1642012357500,5.71268981,3387.8,3387.7,0.00511581]
[1642012357699,5.71252121,3387.8,3387.7,0.00511581]
[1642012357899,2.53019092,3387.8,3387.7,0.00511581]
[1642012358106,2.53019092,3387.8,3387.6,0.99299581]
[1642012359164,2.53019092,3387.8,3387.4,0.5606199]
[1642012359165,9.79113853,3387.7,3387.4,0.1179]
[1642012359361,0.1179,3387.6,3387.4,0.1179]
[1642012359560,0.1179,3387.6,3387.5,0.00113685]
[1642012359561,0.5429,3387.6,3387.5,0.00113685]
[1642012359762,4.05467173,3387.6,3387.5,0.00113685]
[1642012359963,10.40467173,3387.6,3387.5,0.00113685]
[1642012360159,11.14271173,3387.6,3387.5,0.00113685]
[1642012360360,24.1,3387.4,3387.1,1.47591]
[1642012360562,3.20129126,3387.3,3387.1,1.47591]
[1642012360769,0.4379059,3387.6,3387.2,0.00170527]
[1642012360961,0.1179,3387.7,3387.2,0.00170527]
[1642012361162,2.53019092,3387.8,3387.2,0.00170527]
[1642012361163,2.53019092,3387.8,3387.3,0.1179]
[1642012361360,0.01087459,3387.9,3387.5,1.6230619]
[1642012361561,0.01087459,3387.9,3387.5,1.9230619]
[1642012361765,2.61753553,3387.8,3387.5,5.69970562]
[1642012361960,2.61753553,3387.8,3387.5,5.51739522]
[1642012362362,3.76230288,3388.3,3387.6,0.8852881]
[1642012362595,3.76230288,3388.3,3387.9,0.73768]
[1642012362795,1.04328557,3388.6,3387.9,0.73768]
[1642012362997,1.51079292,3388.0,3387.9,0.3]
[1642012363302,0.1179,3388.8,3387.9,0.3]
[1642012363496,4.38742844,3388.9,3388.6,0.73763]
[1642012363695,0.00170527,3388.7,3388.6,0.73763]
[1642012363899,0.1179,3389.0,3388.6,0.73763]
[1642012364102,20.9179,3389.4,3388.6,0.3]
[1642012364300,0.00113685,3388.9,3388.6,0.3]
[1642012364501,17.3,3389.4,3388.9,1.27820215]
[1642012364703,17.3,3389.4,3389.1,0.442508]
[1642012364899,0.00227369,3389.3,3389.1,0.442508]
[1642012365099,0.00227369,3389.3,3389.1,0.742508]
[1642012365299,0.00170527,3389.2,3389.1,0.742508]
[1642012365702,0.00170527,3389.2,3389.1,1.480028]
[1642012365906,2.55170527,3389.2,3389.1,1.480028]
[1642012369159,0.00170527,3389.2,3389.1,1.480028]
[1642012370899,2.25170527,3389.2,3389.1,1.480028]
[1642012373860,0.00170527,3389.2,3389.1,1.480028]
[1642012374055,0.1179,3389.7,3389.1,1.480028]
[1642012374056,1.50918601,3389.6,3389.1,1.480028]
[1642012374255,1.50918601,3389.6,3389.2,0.4424595]
[1642012374455,0.00113684,3389.4,3389.3,0.73745]
[1642012374655,0.00113684,3389.4,3389.3,1.03745]
[1642012374853,1.50918601,3389.4,3389.3,1.03745]
[1642012375253,1.50918601,3389.5,3389.3,1.03745]
[1642012375654,4.80565074,3389.7,3389.3,1.03745]
[1642012375655,22.65918601,3389.4,3389.3,1.03745]
[1642012375856,23.68899218,3389.4,3389.3,1.03745]
[1642012376054,21.15,3389.4,3389.3,1.03745]
[1642012376653,3.85,3389.4,3389.3,1.03745]
[1642012377055,21.15,3389.4,3389.3,1.03745]
[1642012377352,21.15,3389.4,3389.3,0.3]
[1642012377601,0.73762,3389.3,3389.0,1.15552]
[1642012377804,18.03762,3389.3,3389.0,1.15552]
[1642012378003,18.03762,3389.3,3389.0,0.3]
[1642012378204,17.3,3389.1,3388.7,0.00113685]
[1642012378403,0.1179,3389.0,3388.7,0.00113685]
[1642012378605,0.1179,3389.0,3388.7,0.00284212]
[1642012378907,6.10976535,3388.8,3388.5,0.00397897]
[1642012379104,17.3,3388.9,3388.5,0.00397897]
[1642012379505,17.6,3388.9,3388.2,0.00568424]
[1642012379905,17.6,3388.9,3388.2,1.43445831]
[1642012380108,1.52374817,3388.8,3388.2,1.43445831]
[1642012380408,0.3,3388.9,3388.5,0.73773]
[1642012380807,0.1179,3389.2,3388.5,0.73773]
[1642012380808,0.1179,3389.2,3388.6,0.00341054]
[1642012381455,0.1179,3389.2,3388.4,0.00454739]
[1642012381654,0.1179,3389.2,3388.3,0.00511581]
[1642012381851,0.04549602,3389.1,3388.7,1.47525]
[1642012382149,20.07836373,3389.3,3388.8,0.0022737]
[1642012382150,0.1179,3389.0,3388.8,0.0022737]
[1642012382351,0.1179,3389.2,3388.8,0.0022737]
[1642012383354,0.73763,3389.1,3388.8,0.0022737]
[1642012383558,0.73763,3389.1,3389.0,0.7376]
[1642012383757,18.03763,3389.1,3388.8,0.0022737]
[1642012383961,0.73763,3389.1,3389.0,0.00113685]
[1642012384159,0.1179,3389.2,3388.6,0.00341054]
[1642012384361,0.1179,3389.2,3388.4,0.30454739]
[1642012384660,19.77123373,3389.3,3388.9,0.73765]
[1642012384861,19.47123373,3389.3,3388.9,0.73765]
[1642012385115,18.1555,3389.3,3389.0,0.00113685]
[1642012385315,18.0376,3389.3,3389.0,0.00113685]
[1642012385717,0.50612655,3389.2,3388.9,0.00170527]
[1642012386520,3.50612655,3389.2,3388.9,0.00170527]
[1642012386717,3.50612655,3389.2,3389.1,0.73757]
[1642012386920,3.0,3389.2,3389.1,0.73757]
[1642012387720,5.55,3389.2,3389.1,0.73757]
[1642012388120,22.85,3389.2,3388.9,0.73933527]
[1642012388520,22.85,3389.2,3389.0,0.00113685]
[1642012388721,8.38348064,3389.1,3389.0,0.00113685]
[1642012388952,25.68348064,3389.1,3388.8,0.0022737]
[1642012389161,18.77552,3389.0,3388.8,0.0022737]
[1642012389351,20.79194612,3388.9,3388.8,0.0022737]
[1642012389550,20.79194612,3388.9,3388.6,0.00341054]
[1642012389952,20.79194612,3388.9,3387.2,1.0]
[1642012389953,17.3,3388.4,3387.2,1.0]
[1642012390150,17.3,3388.4,3386.6,3.158]
[1642012390151,17.3,3387.9,3387.3,0.118]
[1642012390351,18.77589,3387.9,3387.3,0.00738951]
[1642012390550,18.77589,3387.9,3387.4,0.85585]
[1642012390852,18.77589,3387.9,3387.5,0.00625266]
[1642012390853,17.3,3387.8,3387.5,0.00625266]
[1642012391252,6.94000436,3387.6,3387.5,0.00625266]
[1642012391452,24.24000436,3387.6,3387.2,0.00795793]
[1642012391656,25.71599436,3387.6,3387.3,0.1179]
[1642012392051,3.21581803,3387.5,3387.4,0.00682108]
[1642012392457,2.86599436,3387.6,3387.4,0.00682108]
[1642012392700,1.90105,3388.1,3387.2,0.00795793]
[1642012392701,3.70356154,3387.5,3387.2,0.00795793]
[1642012392900,3.70356154,3387.5,3387.3,1.47579]
[1642012393300,21.00356154,3387.5,3387.4,0.00682108]
[1642012393502,21.30356154,3387.5,3387.4,0.00682108]
[1642012393904,22.78431568,3387.5,3387.4,0.00682108]
[1642012394105,21.30356154,3387.5,3387.2,0.00795793]
[1642012394309,21.30356154,3387.5,3387.1,0.00852635]
[1642012394709,4.00356154,3387.5,3387.3,0.73797]
[1642012395107,4.00356154,3387.5,3387.4,0.00682108]
[1642012395807,3.70356154,3387.5,3387.4,0.00682108]
[1642012396109,6.65356154,3387.5,3387.4,2.30682108]
[1642012396363,6.65356154,3387.5,3387.4,1.15306476]
[1642012396552,6.65356154,3387.5,3387.4,2.15306476]
[1642012396753,6.65356154,3387.5,3387.4,1.15306476]
[1642012396961,6.65356154,3387.5,3387.4,2.15306476]
[1642012397154,6.65356154,3387.5,3387.4,2.27096476]
[1642012397958,6.65356154,3387.5,3387.4,1.27096476]
[1642012398157,6.65356154,3387.5,3387.4,2.27096476]
[1642012399162,6.65356154,3387.5,3387.4,1.27096476]
[1642012399163,4.5271887,3387.5,3387.4,1.27096476]
[1642012399464,4.5271887,3387.5,3387.4,1.12472108]
[1642012399860,4.5271887,3387.5,3387.4,0.12472108]
[1642012400114,4.5271887,3387.5,3387.4,1.12472108]
[1642012400315,4.5271887,3387.5,3387.4,0.12472108]
[1642012400511,4.5271887,3387.5,3387.4,1.00682108]
[1642012401112,4.5271887,3387.5,3387.4,0.00682108]
[1642012402116,4.5271887,3387.5,3387.4,1.10707238]
[1642012402912,4.5271887,3387.5,3387.4,0.00682108]
[1642012409204,4.8271887,3387.5,3387.4,0.00682108]
[1642012409404,8.0271887,3387.5,3387.4,0.00682108]
[1642012409605,8.0271887,3387.5,3387.2,0.00795793]
[1642012409807,0.7379695,3387.4,3387.2,0.00795793]
[1642012410011,0.3,3387.3,3387.2,0.00795793]
[1642012410808,0.8558695,3387.4,3387.2,0.00795793]
[1642012411455,2.84690813,3387.4,3387.2,0.00795793]
[1642012412049,2.84690813,3387.4,3387.1,0.74651635]
[1642012412249,0.73794,3387.3,3387.1,0.74651635]
[1642012412449,0.73794,3387.3,3387.2,0.00795793]
[1642012412851,1.03794,3387.3,3387.2,0.00795793]
[1642012414054,8.19846585,3387.3,3387.2,0.00795793]
[1642012414457,8.19846585,3387.3,3387.1,0.00852635]
[1642012414458,26.23651555,3387.3,3387.1,0.00852635]
[1642012414655,26.23651555,3387.3,3386.4,0.01250532]
[1642012414854,26.23651555,3387.3,3386.5,0.1181]
[1642012414855,0.73806,3386.9,3386.5,0.1181]
[1642012415302,0.73806,3386.9,3386.7,1.476]
[1642012415699,0.3,3387.3,3386.7,1.476]
[1642012415900,0.73806,3386.8,3386.7,1.476]
[1642012416300,2.12637284,3387.1,3386.7,1.48680005]
[1642012416599,2.12637284,3387.1,3386.8,0.07833163]
[1642012416800,2.12637284,3387.1,3386.9,0.73783]
[1642012416999,2.12637284,3387.1,3387.0,0.1179]
[1642012417201,2.12637284,3387.3,3387.0,1.60279478]
[1642012417500,2.12637284,3387.3,3387.1,0.00852635]
[1642012417903,2.86427014,3387.3,3387.1,0.00852635]
[1642012418100,2.86427014,3387.3,3387.0,0.74709478]
[1642012418300,0.7378973,3387.3,3387.0,0.738]
[1642012418502,0.7378973,3387.3,3387.1,0.00852635]
[1642012418705,1.4757973,3387.3,3387.1,0.00852635]
[1642012418953,1.7759647,3387.2,3387.1,0.00852635]
[1642012419155,1.7259647,3387.2,3387.1,0.00852635]
[1642012419357,1.7259647,3387.2,3386.8,0.01023163]
[1642012419556,0.7380367,3387.1,3386.8,0.01023163]
[1642012420153,1.4761083,3387.0,3386.8,0.01023163]
[1642012421360,1.4760767,3387.1,3386.8,0.74821163]
[1642012421759,1.4760767,3387.1,3386.9,0.0096632]
[1642012426658,4.4760767,3387.1,3386.9,0.0096632]
[1642012427359,21.7760767,3387.1,3386.9,0.0096632]
[1642012427557,4.4760767,3387.1,3386.9,0.0096632]
[1642012428057,0.738074,3386.9,3386.3,0.01307374]
[1642012428262,1.47611,3386.9,3386.4,0.1181]
[1642012428758,3.0,3387.1,3386.6,0.73804]
[1642012428958,3.7379513,3387.1,3386.6,0.73804]
[1642012429160,3.3,3387.1,3386.6,0.73804]
[1642012429860,0.73799,3386.9,3386.6,0.73804]
[1642012430102,1.4759703,3386.9,3386.6,0.73804]
[1642012430307,0.02561391,3386.8,3386.6,0.73804]
[1642012430510,0.7379803,3386.9,3386.6,0.73804]
[1642012430907,0.73806,3386.8,3386.6,0.73804]
[1642012431814,0.3,3386.7,3386.6,0.73804]
[1642012432214,0.3,3386.7,3386.6,0.74940847]
[1642012432613,1.92842587,3386.7,3386.6,0.74940847]
[1642012436860,1.62842587,3386.7,3386.6,0.74940847]
[1642012441562,1.62842587,3387.0,3386.6,0.74940847]
[1642012442960,2.36630807,3387.0,3386.8,0.7379]
[1642012443363,2.36630807,3387.0,3386.9,0.0096632]
[1642012444263,0.7378822,3387.0,3386.9,0.0096632]
[1642012447425,1.0378822,3387.0,3386.9,0.0096632]
[1642012447721,7.9559822,3387.0,3386.9,0.0096632]
[1642012448119,7.9559822,3387.0,3386.0,0.01477901]
[1642012448120,0.73812,3386.5,3386.0,0.01477901]
[1642012448325,2.2143372,3386.4,3386.1,1.47619]
[1642012448522,1.4762248,3386.4,3386.2,0.73809]
[1642012448721,1.4762248,3386.4,3386.2,0.75173217]
[1642012448958,1.4762248,3386.4,3386.3,0.01307374]
[1642012449562,10.08608272,3386.4,3386.3,0.01307374]
[1642012449757,10.20418272,3386.4,3386.3,0.01307374]
[1642012449956,3.02015205,3386.4,3386.3,0.01307374]
[1642012450159,3.02015205,3386.4,3385.2,5.49391]
[1642012450160,0.1181,3386.4,3385.9,0.13344744]
[1642012450556,0.1181,3386.4,3386.0,0.06728897]
[1642012450759,0.1181,3386.4,3386.2,0.73811]
[1642012451155,0.1181,3386.4,3386.3,0.01307374]
[1642012451760,1.63162478,3386.4,3386.3,0.01307374]
[1642012451956,1.51352478,3386.4,3386.3,0.01307374]
[1642012453705,7.0181,3386.4,3386.3,0.01307374]
[1642012454513,7.3181,3386.4,3386.3,0.01307374]
[1642012454709,7.3181,3386.4,3386.1,0.01421059]
[1642012454710,0.04115439,3386.3,3386.1,0.01421059]
[1642012454911,5.8681,3386.2,3386.1,0.01421059]
[1642012455109,6.1681,3386.2,3385.9,0.01534744]
[1642012455310,6.1681,3386.2,3385.9,0.75354744]
[1642012455709,6.1681,3386.2,3386.0,0.01477901]
[1642012456113,2.96139408,3386.1,3386.0,0.01477901]
[1642012456373,7.5382022,3386.1,3386.0,0.01477901]
[1642012456561,0.76348407,3386.0,3385.6,0.01705271]
[1642012456762,0.1181,3385.9,3385.1,0.1181]
[1642012456968,0.7181,3385.9,3385.1,0.1181]
[1642012457164,0.7181,3385.9,3385.2,0.0193264]
[1642012457363,1.31476948,3385.5,3385.2,0.0193264]
[1642012457765,2.05303268,3385.5,3385.2,0.0193264]
[1642012457964,1.31476948,3385.5,3385.2,0.0193264]
[1642012458265,1.31476948,3385.5,3385.1,0.01989482]
[1642012458565,1.61476948,3385.5,3385.4,0.7383]
[1642012458767,1.61476948,3385.5,3385.2,1.47654]
[1642012458768,4.80314963,3385.5,3385.2,1.47654]
[1642012458967,4.80314963,3385.5,3385.4,0.01818955]
[1642012459168,1.61476948,3385.5,3385.3,0.01875798]
[1642012459369,2.92776504,3385.4,3385.3,0.01875798]
[1642012459573,0.3,3385.5,3385.3,0.01875798]
[1642012459771,0.1181,3385.6,3385.4,0.1181]
[1642012460209,0.1181,3385.6,3385.5,0.01762113]
[1642012460412,0.1181,3385.6,3384.2,4.0013]
[1642012460413,6.8,3385.5,3384.2,4.0013]
[1642012460711,6.8,3385.5,3384.5,0.73846]
[1642012460712,0.7384392,3385.2,3384.5,0.73846]
[1642012460909,0.1181,3385.1,3384.5,0.73846]
[1642012461107,0.7384392,3385.2,3384.6,0.00511581]
[1642012461311,1.52700893,3385.2,3384.6,0.00511581]
[1642012461509,1.47692,3385.0,3384.6,1.36911203]
[1642012461911,1.47692,3385.0,3384.7,0.00454739]
[1642012462116,0.44341955,3385.3,3384.7,0.74296739]
[1642012462314,0.1181,3385.3,3384.8,0.1181]
[1642012462513,1.98690717,3385.0,3384.8,3.61161571]
[1642012462712,1.98690717,3385.0,3384.9,2.50341054]
[1642012462914,1.98690717,3385.0,3384.9,3.92151054]
[1642012463314,1.98690717,3385.0,3384.9,1.12151054]
[1642012463514,2.10933947,3385.4,3384.9,1.59807054]
[1642012463714,2.10933947,3385.4,3385.0,0.1181]
[1642012463715,0.7384,3385.2,3385.0,0.1181]
[1642012463969,0.7384,3385.2,3385.0,0.12094212]
[1642012464169,1.47679,3385.4,3385.1,0.00227369]
[1642012464774,2.2151808,3385.4,3385.1,0.00227369]
[1642012465369,2.2151808,3385.4,3385.0,0.00284212]
[1642012465669,0.76345087,3385.2,3385.0,0.00284212]
[1642012465872,0.7384214,3385.2,3385.0,0.00284212]
[1642012466069,0.7384214,3385.2,3384.8,0.12207896]
[1642012466273,0.7384214,3385.2,3384.9,0.00341054]
[1642012467273,3.7384214,3385.2,3384.9,0.00341054]
[1642012467470,0.04570734,3385.1,3384.9,0.00341054]
[1642012468108,6.9181,3385.0,3384.9,0.00341054]
[1642012468505,6.9181,3385.0,3384.4,0.00625266]
[1642012468506,0.73854,3384.8,3384.4,0.00625266]
[1642012468705,0.7385565,3384.6,3384.4,0.00625266]
[1642012469110,7.14734106,3384.5,3384.4,0.00625266]
[1642012469510,8.18597106,3384.5,3384.2,0.00738951]
[1642012469712,0.7386502,3384.3,3383.9,0.00909478]
[1642012469913,0.73866,3384.2,3383.9,0.00909478]
[1642012470111,1.03866,3384.2,3383.8,0.0096632]
[1642012470911,0.73871,3383.9,3383.7,0.01023162]
[1642012471114,0.73871,3383.9,3383.6,0.01080005]
[1642012471386,0.73871,3383.9,3383.4,0.01193689]
[1642012471778,2.11329994,3383.9,3383.4,0.01193689]
[1642012471978,2.11329994,3383.9,3383.5,0.73869]
[1642012472179,0.7387,3383.8,3383.5,0.73869]
[1642012472379,0.7387,3383.8,3383.6,0.01080005]
[1642012472685,0.7387,3383.8,3383.4,0.01193689]
[1642012472885,0.1182,3383.7,3383.4,0.01193689]
[1642012473281,0.1182,3383.7,3383.3,0.01250532]
[1642012473482,0.73879,3383.6,3383.3,0.01250532]
[1642012473783,0.73879,3383.6,3383.1,0.01364216]
[1642012473784,4.51691161,3383.4,3383.1,0.01364216]
[1642012473984,0.02674904,3383.3,3383.1,0.01364216]
[1642012474185,4.51691161,3383.4,3382.8,0.01534743]
[1642012474384,0.1182,3383.3,3382.8,0.01534743]
[1642012475610,0.73889,3383.2,3382.8,0.01534743]
[1642012476615,0.1182,3383.7,3382.9,0.73879]
[1642012476816,0.1182,3383.7,3382.9,0.3]
[1642012477017,3.0,3383.2,3383.0,0.01421059]
[1642012477416,3.0,3383.2,3382.9,0.01477901]
[1642012477617,3.0,3383.2,3383.1,0.73863]
[1642012477821,3.0,3383.2,3383.1,0.85683]
[1642012478017,3.0,3383.2,3383.1,0.87047216]
[1642012478217,3.0,3383.2,3383.1,0.75227216]
[1642012479866,3.0,3383.2,3383.1,4.46950426]
[1642012480067,0.1182,3384.1,3383.9,0.15]
[1642012480263,0.1182,3384.1,3384.0,0.1182]
[1642012480478,0.1182,3384.1,3384.0,0.12672635]
[1642012481668,0.1182,3384.1,3384.0,1.01520635]
[1642012482066,0.1182,3384.1,3384.0,1.31520635]
[1642012482469,0.1182,3384.1,3384.0,2.31520635]
[1642012482913,0.1182,3384.1,3384.0,5.70382392]
[1642012483115,0.1182,3384.1,3384.0,2.31520635]
[1642012484017,0.1182,3384.1,3384.0,3.71421993]
[1642012487974,0.1182,3384.1,3384.0,3.59601993]
[1642012488377,3.1182,3384.1,3384.0,1.45852635]
[1642012488577,3.0,3384.1,3384.0,0.15852635]
[1642012488977,3.0,3384.1,3384.0,1.15852635]
[1642012489276,3.0,3384.1,3384.0,0.15852635]
[1642012489676,5.55,3384.1,3384.0,0.15852635]
[1642012490109,3.0,3384.1,3384.0,0.15852635]
[1642012490314,5.53345453,3384.1,3384.0,0.15852635]
[1642012492517,5.83345453,3384.1,3384.0,0.15852635]
[1642012493867,5.83345453,3384.1,3384.0,0.00852635]
[1642012494067,5.95165453,3384.1,3384.0,0.00852635]
[1642012494267,6.69029453,3384.1,3383.8,0.0096632]
[1642012494465,0.1182,3384.0,3383.8,0.0096632]
[1642012495468,2.65165453,3384.0,3383.8,0.0096632]
[1642012495667,2.53345453,3384.0,3383.8,0.0096632]
[1642012496168,2.53345453,3383.9,3383.8,0.0096632]
[1642012496971,2.53345453,3384.0,3383.8,0.0096632]
[1642012497371,2.53345453,3384.0,3383.9,0.15]
[1642012497814,2.53345453,3384.0,3383.9,0.15909478]
[1642012498417,4.78345453,3384.0,3383.9,0.15909478]
[1642012498716,4.78345453,3384.0,3383.9,0.00909478]
[1642012498717,5.08345453,3384.0,3383.9,0.00909478]
[1642012499121,5.08345453,3384.0,3383.5,0.01136847]
[1642012499315,0.73875,3383.8,3383.5,0.01136847]
[1642012499518,1.03875,3383.8,3383.5,0.01136847]
[1642012500117,0.73875,3383.8,3383.5,0.01136847]
[1642012500316,2.65165453,3384.0,3383.5,0.01136847]
[1642012500317,2.65165453,3384.0,3383.6,0.15]
[1642012500516,2.83345453,3384.0,3383.6,0.15]
[1642012500721,2.83345453,3384.0,3383.7,0.01023162]
[1642012501117,5.81429171,3384.0,3383.7,0.01023162]
[1642012501382,0.73866,3383.9,3383.7,0.01023162]
[1642012504274,0.73877,3383.8,3383.4,0.01193689]
[1642012504475,1.4774139,3383.9,3383.4,0.01193689]
[1642012504674,0.73872,3383.8,3383.4,0.01193689]
[1642012505113,1.03872,3383.8,3383.4,0.01193689]
[1642012505517,1.47756,3383.6,3383.4,0.01193689]
[1642012505717,0.73872,3383.6,3383.3,1.12327033]
[1642012505918,0.3,3383.8,3383.3,1.12327033]
[1642012506121,3.3,3384.1,3383.3,1.12327033]
[1642012506318,0.00170527,3383.7,3383.3,1.12327033]
[1642012506720,0.00113684,3383.6,3383.4,0.73866]
[1642012507121,0.00341054,3384.0,3383.4,0.73866]
[1642012507520,0.73867,3383.8,3383.4,0.73866]
[1642012507721,0.05080147,3383.7,3383.4,0.73866]
[1642012508020,0.73867,3383.8,3383.4,0.73866]
[1642012508021,0.00113684,3383.6,3383.4,0.85686]
[1642012508626,0.00113684,3383.6,3383.4,1.85686]
[1642012508865,0.00113684,3383.6,3383.4,0.85686]
[1642012509063,0.00113684,3383.6,3383.4,1.85686]
[1642012509263,0.00113684,3383.6,3383.4,0.85686]
[1642012509465,0.00113684,3383.6,3383.4,1.85686]
[1642012509666,0.00113684,3383.6,3383.4,1.73866]
[1642012509868,0.73984684,3383.6,3383.4,1.73866]